Cogmind - Beta 14 *** ADVENTURER MODE // 2025.01.06 @ 13:12:34 Player: Jefffff Result: Destroyed by G-50 Soldier with Heavy Laser Performance ------------- Evolutions (3) 1500 Regions Visited (9) 1800 Robots Destroyed (207) 1035 Value Destroyed (7648) 7648 Prototype IDs (12) 240 Alien Tech Used (0) 0 Bonus (1714) 1714 TOTAL SCORE: 13937 Bonus ------- High Alert Combat Kills 1783 Follower Combat Kills 334 Entered Garrisons 200 Friendly Fire -603 Cogmind --------- Core Integrity 0/700 Matter 201/300 Energy 216/220 System Corruption 1% Temperature Critical (533) Movement Rolling (130) Ox2 Location -7/Factory Parts ------- > --- POWER (2) -------- Micro Fission Core Light Antimatter Reactor > --- PROPULSION (4) --- Armored Huge Wheel Armored Huge Wheel > --- UTILITY (4) ------ Improved Cooling System Huge Storage Unit Advanced Visual Processing Unit Energy Filter > --- WEAPON (3) ------- Matter Neutralizer Hardcell Cannon Shock Maul > --- INVENTORY (25) --- Armored Huge Wheel Armored Huge Wheel Centrium Wheel Power Amplifier Improved Signal Interpreter Armor Integrity Analyzer Recoil Stabilizer Quantum Capacitor Transmission Jammer Advanced ECM Suite Improved Medium Armor Plating Shock Absorption System Phase Gun Quantum Rifle HERF Cannon Matter Neutralizer Railgun Gauss Cannon Gauss Cannon Heavy Rocket Launcher Plasma Cutter Peak State ------------ > --- POWER ------------ Improved Deuterium Engine Light Antimatter Reactor > --- PROPULSION ------- Armored Huge Wheel Centrium Wheel Diametric Drive > --- UTILITY ---------- Improved Cooling System Huge Storage Unit Advanced Visual Processing Unit Improved Phase Shifter > --- WEAPON ----------- Matter Neutralizer Hardcell Cannon Shock Maul > --- INVENTORY -------- Armored Wheel Armored Wheel Armored Huge Wheel Improved Signal Interpreter Long-range Terrain Scanner Armor Integrity Analyzer Recoil Stabilizer Energy Filter Quantum Capacitor Improved Force Booster Transmission Jammer Advanced ECM Suite Improved Medium Armor Plating Shock Absorption System Phase Gun Quantum Rifle HERF Cannon Matter Neutralizer Railgun Gauss Cannon Gauss Cannon Heavy Rocket Launcher Plasma Cutter [Rating: 81] Favorites ----------- Power Cooled Ion Engine Engine Cooled Ion Engine Power Core Light Nuclear Core Reactor Light Antimatter Reactor Propulsion Titanium Leg Treads Light Treads Leg Titanium Leg Wheel Centrium Wheel Hover Unit Cooled Aerolev Unit Flight Unit Diametric Drive Utility Huge Storage Unit Device Improved Heat Sink Storage Huge Storage Unit Processor Advanced Visual Processing Unit Protection Power Shielding Weapon Assault Cannon Energy Gun Field Laser Energy Cannon Particle Cannon Ballistic Gun Gauss Rifle Ballistic Cannon Assault Cannon Launcher Rocket Launcher Impact Weapon Mace Slashing Weapon Scythe Piercing Weapon Makeshift Spear Build | -11 -10 -9 -9 -9 -8 -8 -7 -7 -7 ------- Run | Yrd Mat Mat Min Exi Min Mat Fac Gar Fac Slots Evolved 6 | . . 2 . . . 2 2 . . Power 1 | . . . . . . 1 . . . Propulsion 2 | . . . . . . 1 1 . . Utility 2 | . . 1 . . . . 1 . . Weapon 1 | . . 1 . . . . . . . Parts Attached 158 | 5 15 31 1 . 1 26 7 36 36 Power 24 | 1 2 4 . . . 6 3 4 4 Engine 13 | 1 2 4 . . . 1 2 2 1 Core 9 | . . . . . . 5 1 2 1 Reactor 2 | . . . . . . . . . 2 Propulsion 56 | 2 5 11 . . . 8 1 17 12 Treads 6 | . . . . . . . . 2 4 Leg 41 | 2 5 11 . . . 7 1 14 1 Wheel 6 | . . . . . . 1 . 1 4 Hover 1 | . . . . . . . . . 1 Flight 2 | . . . . . . . . . 2 Utility 30 | 1 2 4 . . 1 6 3 5 8 Device 13 | . . 1 . . . 3 . 2 7 Storage 4 | 1 1 1 . . . . . . 1 Processor 2 | . . . . . . . . 2 . Hackware . | . . . . . . . . . . Protection 11 | . 1 2 . . 1 3 3 1 . Artifact . | . . . . . . . . . . Weapon 48 | 1 6 12 1 . . 6 . 10 12 Energy Gun 12 | . 4 2 . . . 2 . 2 2 Energy Cannon 6 | . 1 2 . . . . . 2 1 Ballistic Gun 10 | 1 1 4 . . . 2 . 1 1 Ballistic Cannon 11 | . . 3 . . . . . 3 5 Launcher 2 | . . 1 . . . . . . 1 Special Weapon . | . . . . . . . . . . Impact Weapon 3 | . . . . . . . . 1 2 Slashing Weapon 3 | . . . . . . 2 . 1 . Piercing Weapon 1 | . . . 1 . . . . . . Special Melee Weapon . | . . . . . . . . . . Unidentified Prototypes 11 | . . 2 . . . . . . 9 Parts Lost 26 | . 1 1 . . . 3 . 18 3 Power 4 | . . 1 . . . . . 2 1 Propulsion 10 | . 1 . . . . . . 9 . Utility 9 | . . . . . . 3 . 4 2 Weapon 3 | . . . . . . . . 3 . Highest Loss Streak 5 | . 1 1 . . . 2 . 5 1 To Critical Strikes . | . . . . . . . . . . Average Slot Usage (%) 98 | . 96 99 100 100 100 99 93 99 93 Engine 9 | . 13 10 11 11 11 7 . 8 6 Core 3 | . . . . . . 9 14 5 3 Leg 22 | . 27 22 22 22 22 26 23 27 4 Wheel 1 | . . . . . . . . . 12 Device 5 | . . 10 . . . 3 15 7 9 Storage 9 | . 14 11 11 11 11 9 7 7 7 Processor 3 | . . . . . . . . 12 12 Protection 12 | . 13 11 22 22 22 14 7 2 . Energy Gun 2 | . 8 4 . . . 4 7 1 . Energy Cannon 4 | . 5 12 5 . . . . 1 7 Ballistic Gun 5 | . 10 10 . . . 8 7 5 . Ballistic Cannon 8 | . . 1 22 22 22 4 . 5 6 Impact Weapon 1 | . . . . . . . . 5 7 Slashing Weapon 1 | . . . . . . 5 7 1 . Piercing Weapon 3 | . . . 5 11 11 3 . . . Peak Build Rating 81 | 5 11 26 26 26 28 38 47 61 81 Average Rating 32 | 3 8 18 24 26 27 35 41 43 68 On Entrance 26 | . 5 11 24 26 26 28 37 47 61 Naked Turns . | . . . . . . . . . . Heaviest Build 129 | 12 31 105 105 103 104 116 123 123 129 Greatest Support 68 | 20 20 34 34 34 34 51 67 68 56 Greatest Overweight (x) 7 | . 2 5 3 3 3 3 2 7 7 Average Overweight (x) 2 | . . 3 3 3 3 2 1 2 3 Largest Inventory Capacity 25 | 8 15 25 25 25 25 25 25 25 25 Average Capacity 23 | 6 14 23 25 25 25 25 25 25 25 Most Carried 25 | 5 15 25 25 25 25 25 25 25 25 Average Carried 23 | 3 13 22 24 25 25 24 24 23 24 Final Capacity 25 | 8 15 25 25 25 25 25 25 25 25 Final Carried 25 | 4 15 25 25 25 25 25 24 24 24 Class Distribution -------------------- 54% | Mutant 19% | Scavenger-Mutant 14% | Tank 10% | Scavenger-Tank Dominant Class ---------------- Mutant | -10/Materials Scavenger-Tank | -9/Materials Tank | -9/Mines Mutant | -9/Exiles Mutant | -8/Mines Mutant | -8/Materials Mutant | -7/Factory Scavenger-Mutant | -7/Garrison Mutant | -7/Factory Resources | -11 -10 -9 -9 -9 -8 -8 -7 -7 -7 ----------- Run | Yrd Mat Mat Min Exi Min Mat Fac Gar Fac Matter Collected 4562 | 131 402 564 153 . 109 764 251 1216 972 Remotely . | . . . . . . . . . . Salvage Created 7606 | . 551 1895 175 . 69 1347 246 1601 1722 Parts 415 | . 28 125 11 . 13 82 16 58 82 Haulers Intercepted 13 | . 2 5 . . . 3 . . 3 Recyclers Shooed 2 | . . . . . . . 1 . 1 Parts Field Recycled . | . . . . . . . . . . Retrieved Matter . | . . . . . . . . . . Parts Self-Destructed . | . . . . . . . . . . Prevented . | . . . . . . . . . . Kills | -11 -10 -9 -9 -9 -8 -8 -7 -7 -7 ------- Run | Yrd Mat Mat Min Exi Min Mat Fac Gar Fac Combat Hostiles Destroyed 153 | . 12 33 6 . 8 22 5 34 33 Melee 10 | . . . . . . 5 3 2 . Guns 58 | . 10 14 . . . 12 2 20 . Cannons 76 | . 2 18 6 . 8 5 . 11 26 AOE 3 | . . . . . . . . . 3 Classes Destroyed 17 | . 4 6 . . . 1 2 2 2 Worker 9 | . . 1 . . 1 2 . . 5 Builder 5 | . . 1 . . . 1 . . 3 Hauler 13 | . 2 5 . . . 3 . . 3 Recycler 7 | . . 2 1 . . 3 . . 1 Operator 3 | . . 2 . . . 1 . . . Watcher 14 | . 3 5 . . . 3 1 . 2 Swarmer 35 | . 3 7 4 . 8 3 2 7 1 Cutter 2 | . . . . . . . . 2 . Grunt 66 | . 9 14 2 . . 11 . 12 18 Brawler 7 | . . 3 . . . 2 . 1 1 Duelist 7 | . . . . . . 1 . 2 4 Protector 1 | . . . . . . . . . 1 Sentry 23 | . . 9 . . . 5 1 6 2 Specialist 2 | . . . . . . . . 2 . Hunter 4 | . . . . . . . 1 1 2 Programmer 5 | . . . . . . . 1 1 3 Heavy 1 | . . . . . . . . . 1 Savage 1 | . . . . . . . . 1 . Guerrilla 1 | . . . . . . . . 1 . Infiltrator 1 | . . . . . . . . . 1 Best Kill Streak 9 | . 3 5 4 . 9 4 3 5 8 Combat Bots Only 8 | . 3 4 3 . 8 3 2 5 6 Max Kills in Single Turn 4 | . 1 2 1 . 2 2 1 2 4 Gunslinging . | . . . . . . . . . . Exploded 3 | . . . . . . . . . 3 Melee 1 | . . . . . . 1 1 1 . Uniques/NPCs Destroyed . | . . . . . . . . . . Combat | -11 -10 -9 -9 -9 -8 -8 -7 -7 -7 -------- Run | Yrd Mat Mat Min Exi Min Mat Fac Gar Fac Hostile Shots Fired 1086 | . 74 114 30 . 30 140 41 482 175 Missed 374 | . 18 39 7 . 6 38 14 177 75 Damage Taken 6835 | . 480 670 179 . 135 1100 171 2736 1364 Core 1107 | . 75 120 27 . 16 155 35 307 372 Absorbed by Shields 308 | . . . . . . 76 84 148 . Redirected to Shielding 255 | . 10 10 24 . 13 92 . 106 . Ignored by Resistances 2196 | . 152 205 54 . 48 435 80 885 337 Regen/Repaired (Parts) 423 | . . 116 . . . 232 . . 75 Core Remaining (%) 75 | 100 70 . . . 59 71 . . . Volleys Fired 494 | . 49 82 16 . 9 88 11 147 92 Largest 3 | . 2 3 3 . 2 2 2 3 2 Hottest 170 | . 91 159 156 . 88 91 91 152 170 Shots Fired 1030 | . 97 213 33 . 18 176 22 287 184 Gun 539 | . 92 109 . . . 121 22 195 . Cannon 490 | . 5 104 33 . 18 55 . 92 183 Launcher 1 | . . . . . . . . . 1 Special . | . . . . . . . . . . Kinetic 620 | . 46 82 26 . 18 141 11 205 91 Thermal 409 | . 51 131 7 . . 35 11 82 92 Explosive 1 | . . . . . . . . . 1 Electromagnetic . | . . . . . . . . . . Robot Hit Streak 31 | . 19 23 18 . 6 28 10 31 30 Robot Miss Streak 6 | . 4 4 6 . 2 3 1 3 2 Penetration Max 1 | . . . . . . 1 . 1 . Secondary Targets 4 | . 3 . . . . 1 . . . Max Gunslinging Chain 1 | . 1 . . . . 1 . . . Shots Hit Robots 729 | . 73 132 20 . 13 137 23 190 141 Core Hits 320 | . 29 54 18 . 16 51 10 78 64 Critical Kills 5 | . . . . . . . . 1 4 Critical Parts Destroyed 10 | . . 3 . . . 1 . 5 1 Critical Strikes 38 | . . 5 . . . 5 2 13 13 Burn 5 | . . 2 . . . 1 . 2 . Meltdown 4 | . . . . . . . . . 4 Destroy 8 | . . 3 . . . 1 . 4 . Blast 14 | . . . . . . 3 . 3 8 Smash 4 | . . . . . . . . 3 1 Sever 3 | . . . . . . . 2 1 . Melee Attacks 50 | . . . . . 1 9 10 26 4 Impact 23 | . . . . . . . . 19 4 Slashing 22 | . . . . . . 5 10 7 . Piercing 5 | . . . . . 1 4 . . . Sneak Attacks 2 | . . . . . . 1 . . 1 Combat Hostiles . | . . . . . . . . . . Follow-up Attacks . | . . . . . . . . . . Damage Inflicted 17734 | . 924 2651 460 . 315 2849 511 4369 5655 Guns 6499 | . 840 1059 . . . 1596 273 2731 . Cannons 9746 | . 84 1578 460 . 282 970 . 1236 5136 Explosions 342 | . . . . . . . . . 342 Melee 1125 | . . . . . 33 283 230 402 177 Ramming 22 | . . 14 . . . . 8 . . Kinetic 9270 | . 418 785 351 . 282 2130 168 2668 2468 Thermal 6975 | . 506 1852 109 . . 436 105 1299 2668 Explosive 300 | . . . . . . . . . 300 Electromagnetic 42 | . . . . . . . . . 42 Impact 444 | . . . . . . . . 267 177 Slashing 536 | . . . . . . 171 230 135 . Piercing 145 | . . . . . 33 112 . . . Highest Corruption 3 | . . . . . . 3 2 2 2 Average Corruption 2 | . . . . . . 2 1 2 1 Corruption Purged 2 | . . . . . . . . . 2 Corruption Blocked . | . . . . . . . . . . Effects 111 | . . . . . . 41 4 48 18 Message Errors 27 | . . . . . . 11 . 13 3 Matter Fused 17 | . . . . . . 6 . 7 4 Heat Flow Errors 11 | . . . . . . 4 1 5 1 Energy Discharges 12 | . . . . . . 3 1 6 2 Data Loss (minor) 20 | . . . . . . 7 1 9 3 Data Loss (major) 3 | . . . . . . 1 . 2 . Misfires 12 | . . . . . . 4 1 4 3 Alerts 6 | . . . . . . 3 . 1 2 Weapon Failures 3 | . . . . . . 2 . 1 . Overload Shots . | . . . . . . . . . . Overflow Damage 465 | . . 16 8 . 6 10 . 50 375 Projectiles 303 | . . 16 8 . 6 10 . 14 249 Explosions 11 | . . . . . . . . . 11 Melee 151 | . . . . . . . . 36 115 Knockbacks 36 | . . . 2 . 4 4 . 9 17 Impact . | . . . . . . . . . . Kinetic 35 | . . . 2 . 4 4 . 9 16 Secondary 1 | . . . . . . . . . 1 Self-Inflicted Damage 17 | . . 9 . . . . . . 8 Shots 2 | . . 1 . . . . . . 1 Rammed . | . . . . . . . . . . Targets Rammed 3 | . . 2 . . . . 1 . . Kicked 3 | . . 2 . . . . 1 . . Crushed . | . . . . . . . . . . Highest Temperature 524 | . 147 216 299 . 60 496 215 354 524 Average Temperature 100 | . 49 58 88 . 22 112 106 109 131 Received Heat Transfer 2983 | . 297 324 78 . . 698 24 1004 558 Effects 22 | . . 1 3 . . 9 . 1 8 Shutdowns 9 | . . . . . . 5 . . 4 Energy Bleed 4 | . . 1 . . . 2 . 1 . Interference 3 | . . . 3 . . . . . . Matter Decay 1 | . . . . . . . . . 1 Short Circuit 3 | . . . . . . 2 . . 1 Damage (core) 2 | . . . . . . . . . 2 Siege Activations . | . . . . . . . . . . Robots Corrupted 2 | . . . . . . . . 1 1 Combat Hostiles 2 | . . . . . . . . 1 1 Parts Fried 5 | . . . . . . . . 1 4 Impact Corruptions 5 | . . . . . . . . 2 3 Robots Melted 6 | . . 1 . . . . . . 5 Combat Hostiles 4 | . . 1 . . . . . . 3 Parts Melted 20 | . 2 4 . . . 2 . 3 9 Heat Transferred 11181 | . 1134 3552 185 . . 999 222 2610 2479 Parts Sabotaged . | . . . . . . . . . . Parts Stolen . | . . . . . . . . . . Parts Stripped . | . . . . . . . . . . Power Chain Reactions . | . . . . . . . . . . Alert | -11 -10 -9 -9 -9 -8 -8 -7 -7 -7 ------- Run | Yrd Mat Mat Min Exi Min Mat Fac Gar Fac Peak Influence 2701 | . 207 268 186 . 187 172 228 2701 1597 Initial 1228 | . . 18 23 . . . 51 148 1228 Average 420 | . 50 76 33 . 24 53 108 1274 1331 Maximum Alert Level 5 | . 1 1 . . . . 1 5 4 Low Security (%) 68 | 100 98 89 100 . 100 100 94 3 . Level 1 3 | . 1 10 . . . . 5 2 . Level 2 5 | . . . . . . . . 27 . Level 3 3 | . . . . . . . . 16 . Level 4 12 | . . . . . . . . 13 100 Level 5 7 | . . . . . . . . 36 . High Security . | . . . . . . . . . . Max Security . | . . . . . . . . . . Squads Dispatched 19 | . 1 3 . . . 1 4 . 10 Investigation 5 | . 1 1 . . . 1 1 . 1 Extermination 4 | . . . . . . . 1 . 3 Reinforcement 5 | . . 2 . . . . . . 3 Assault 3 | . . . . . . . . . 3 Garrison 2 | . . . . . . . 2 . . Intercept . | . . . . . . . . . . Searches Triggered . | . . . . . . . . . . Construction Impeded 1 | . . . . . . . . . 1 Haulers Reinforced 1 | . . . . . . . . . 1 Active Scanning Responses . | . . . . . . . . . . Cargo Convoy Interrupts 1 | . . . . . . . . . 1 Stealth | -11 -10 -9 -9 -9 -8 -8 -7 -7 -7 --------- Run | Yrd Mat Mat Min Exi Min Mat Fac Gar Fac Distress Signals 6 | . . 2 . . . 2 1 . 1 Communications Jammed . | . . . . . . . . . . Distress Signals . | . . . . . . . . . . Times Spotted 216 | . 18 41 8 . 8 36 7 45 53 Peak Tracking Total 8 | . 3 4 4 . 5 6 2 8 5 Tactical Retreats 21 | . 1 . 1 . . 4 . 11 4 Traps | -11 -10 -9 -9 -9 -8 -8 -7 -7 -7 ------- Run | Yrd Mat Mat Min Exi Min Mat Fac Gar Fac Traps Triggered 18 | . 3 1 . . . 2 . 11 1 Indirectly . | . . . . . . . . . . Trap Hack Attempts . | . . . . . . . . . . Triggered . | . . . . . . . . . . Disarmed . | . . . . . . . . . . Reprogrammed . | . . . . . . . . . . Reused . | . . . . . . . . . . Traps Extracted . | . . . . . . . . . . Installed . | . . . . . . . . . . Triggered 2 | . . . . . . . . . 2 Machines | -11 -10 -9 -9 -9 -8 -8 -7 -7 -7 ---------- Run | Yrd Mat Mat Min Exi Min Mat Fac Gar Fac Machines Disabled 18 | . . 3 . . . 2 . 8 5 Max in Single Turn 2 | . . 2 . . . 1 . 2 2 Garrison Relay 5 | . . . . . . . . 5 . Phase Generator 1 | . . . . . . . . 1 . Machines Repaired . | . . . . . . . . . . Machines Dismantled . | . . . . . . . . . . Machines Sabotaged . | . . . . . . . . . . Overloaded Fab Kills . | . . . . . . . . . . Hacking | -11 -10 -9 -9 -9 -8 -8 -7 -7 -7 --------- Run | Yrd Mat Mat Min Exi Min Mat Fac Gar Fac Machines Accessed 40 | . 7 10 1 1 . 11 1 2 7 Terminals 27 | . 7 8 . . . 8 . 2 2 Fabricators 2 | . . . . . . . . . 2 Repair Stations 5 | . . 1 . . . 2 . . 2 Recycling Units . | . . . . . . . . . . Scanalyzers 3 | . . 1 . . . 1 . . 1 Garrison Access 1 | . . . . . . . 1 . . Total Hacks 125 | . 20 33 1 9 . 37 3 7 15 Successful 86 | . 13 23 1 9 . 28 2 1 9 Failed 39 | . 7 10 . . . 9 1 6 6 Catastrophic 4 | . 1 1 . . . 1 . . 1 Database Lockouts . | . . . . . . . . . . Manual 63 | . 21 17 . . . 21 1 . 3 Terminals 72 | . 20 20 . . . 22 . 7 3 Fabricators 5 | . . . . . . . . . 5 Repair Stations 23 | . . 6 . . . 12 . . 5 Recycling Units . | . . . . . . . . . . Scanalyzers 12 | . . 7 . . . 3 . . 2 Garrison Access 3 | . . . . . . . 3 . . Terminal Hacks 23 | . 6 3 1 9 . 3 . 1 . Record 9 | . . . . 9 . . . . . Robot Analysis 4 | . 2 1 . . . 1 . . . Open Door 1 | . . . 1 . . . . . . Emergency Access Points 1 | . . . . . . . . 1 . Terminal Index 2 | . 1 1 . . . . . . . Unreport Threat 5 | . 2 1 . . . 2 . . . Transport Status 1 | . 1 . . . . . . . . Fabricator Hacks 3 | . . . . . . . . . 3 Network Status 1 | . . . . . . . . . 1 Load Schematic 1 | . . . . . . . . . 1 Build 1 | . . . . . . . . . 1 Repair Station Hacks 22 | . . 6 . . . 12 . . 4 Scan Component 11 | . . 3 . . . 6 . . 2 Repair 11 | . . 3 . . . 6 . . 2 Recycling Unit Hacks . | . . . . . . . . . . Scanalyzer 10 | . . 6 . . . 2 . . 2 Insert Component 6 | . . 3 . . . 2 . . 1 Analyze 4 | . . 3 . . . . . . 1 Garrison Access Hacks 1 | . . . . . . . 1 . . Unlock Access 1 | . . . . . . . 1 . . Unauthorized Hacks 27 | . 7 8 . . . 11 1 . . Terminals 26 | . 7 8 . . . 11 . . . Track 3 | . 1 1 . . . 1 . . . Assimilate 2 | . . . . . . 2 . . . Botnet 20 | . 6 7 . . . 7 . . . Operators 1 | . . . . . . 1 . . . Fabricators . | . . . . . . . . . . Repair Stations . | . . . . . . . . . . Recycling Units . | . . . . . . . . . . Scanalyzers . | . . . . . . . . . . Garrison Access 1 | . . . . . . . 1 . . Watchers 1 | . . . . . . . 1 . . Data Cores Recovered . | . . . . . . . . . . Used . | . . . . . . . . . . Hacking Detections 35 | . 7 9 . . . 10 1 2 6 Full Trace Events 3 | . . . . . . . 1 1 1 Feedback Events . | . . . . . . . . . . Feedback Blocked . | . . . . . . . . . . Robot Schematics Acquired . | . . . . . . . . . . Robots Built . | . . . . . . . . . . Authchips . | . . . . . . . . . . Time . | . . . . . . . . . . Total Robot Build Rating . | . . . . . . . . . . Part Schematics Acquired 4 | . . 3 . . . . . . 1 Parts Built 2 | . . . . . . . . . 2 Authchips . | . . . . . . . . . . Time 62 | . . . . . . . . . 62 Total Part Build Rating 4 | . . . . . . . . . 4 Parts Repaired 11 | . . 3 . . . 6 . . 2 Time 430 | . . 90 . . . 228 . . 112 Parts Recycled . | . . . . . . . . . . Recycled Matter . | . . . . . . . . . . Retrieved Matter . | . . . . . . . . . . Retrieved Components . | . . . . . . . . . . Parts Scanalyzed 5 | . . 3 . . . 1 . . 1 Part Schematics Acquired 4 | . . 3 . . . . . . 1 Parts Damaged 2 | . . . . . . 1 . . 1 Bothacking | -11 -10 -9 -9 -9 -8 -8 -7 -7 -7 ------------ Run | Yrd Mat Mat Min Exi Min Mat Fac Gar Fac Used RIF Installer . | . . . . . . . . . . Robots Hacked . | . . . . . . . . . . Non-combat . | . . . . . . . . . . Combat . | . . . . . . . . . . Robot Hacks Applied . | . . . . . . . . . . Relay Couplers Released 25 | . . . . . . . . 22 3 Machine Destruction 22 | . . . . . . . . 22 . Programmers 3 | . . . . . . . . . 3 Fabnet Peak Effective % . | . . . . . . . . . . Robots Rewired 9 | . . . . . . . . 9 . Allies Hacked . | . . . . . . . . . . Hacks Repelled . | . . . . . . . . . . Allies | -11 -10 -9 -9 -9 -8 -8 -7 -7 -7 -------- Run | Yrd Mat Mat Min Exi Min Mat Fac Gar Fac Total Allies 13 | . . . 2 . . . . 11 . Largest Group 4 | . . . 2 2 . . . 4 2 Highest-Rated Group 160 | . . . 45 45 . . . 160 160 Highest-Rated Ally 80 | . . . 31 31 . . . 80 80 Total Orders . | . . . . . . . . . . Ally Attacks 62 | . . . 7 . . . . 50 5 Total Damage 1564 | . . . 126 . . . . 1019 419 Kills 14 | . . . 3 . . . . 9 2 Allies Corrupted . | . . . . . . . . . . Allies Melted 1 | . . . . . . . . . 1 Intel | -11 -10 -9 -9 -9 -8 -8 -7 -7 -7 ------- Run | Yrd Mat Mat Min Exi Min Mat Fac Gar Fac Robot Analysis Total 4 | . 2 1 . . . 1 . . . Derelict Logs Recovered 1 | . . . 1 . . . . . . Drone Launches . | . . . . . . . . . . Drone Recoveries . | . . . . . . . . . . Exploration | -11 -10 -9 -9 -9 -8 -8 -7 -7 -7 ------------- Run | Yrd Mat Mat Min Exi Min Mat Fac Gar Fac Turns Passed 19726 | 62 1425 3975 2013 1624 1820 3069 394 3523 1821 Spaces Moved 5997 | 43 660 1006 567 478 507 717 116 1143 760 Core 6 | 6 . . . . . . . . . Treads . | . . . . . . . . . . Legs 5089 | 37 660 1006 567 478 507 717 116 1001 . Wheels 902 | . . . . . . . . 142 760 Hover . | . . . . . . . . . . Flight . | . . . . . . . . . . Fastest Speed 50 | 50 120 190 340 340 340 266 195 190 129 Average Speed 270 | 110 184 351 340 340 340 268 258 238 159 Slowest Speed 470 | 120 260 470 340 340 340 340 266 263 230 Overloaded Moves . | . . . . . . . . . . Propulsion Burnouts . | . . . . . . . . . . Robots Hopped . | . . . . . . . . . . Cave-ins Triggered . | . . . . . . . . . . Exploration Rate (%) 63 | 3 90 84 92 82 95 70 2 94 26 Regions Visited 9 Branch Regions 3 Pre-discovered Areas . | . . . . . . . . . . Known Exits Taken 1 | . . . . . . . 1 . . Unknown Exits Taken 7 | 1 1 1 1 1 1 1 . . . Scrap Searched 4 | . . . 2 . 2 . . . . Spaces Dug 7 | . . . . . . . 3 2 2 Terrain Destroyed 160 | . . . 4 . 2 7 3 87 57 Melee 5 | . . . . . . . 3 . 2 Projectile 55 | . . . 4 . 2 7 . 4 38 AOE 99 | . . . . . . . . 82 17 Terrain Rammed . | . . . . . . . . . . Walls Destroyed . | . . . . . . . . . . Machines Disabled . | . . . . . . . . . . Actions | -11 -10 -9 -9 -9 -8 -8 -7 -7 -7 --------- Run | Yrd Mat Mat Min Exi Min Mat Fac Gar Fac Total 8495 | 58 774 1279 626 479 587 1698 173 1637 1184 Wait 1405 | . 18 102 37 . 69 813 20 107 239 Move 5989 | 42 659 1005 566 477 506 716 116 1142 760 Hop . | . . . . . . . . . . Pick Up 139 | 10 21 27 3 . . 22 3 36 17 Fast Attach 28 | . 7 3 . . . 8 1 5 4 Attach 37 | 5 2 3 . . . 7 1 15 4 Detach . | . . . . . . . . . . Swap 94 | . 6 26 1 . 1 11 5 16 28 Drop 137 | 1 12 29 3 . 1 24 5 34 28 Fire 494 | . 49 82 16 . 9 88 11 147 92 Melee 50 | . . . . . 1 9 10 26 4 Ram . | . . . . . . . . . . Kick 3 | . . 2 . . . . 1 . . Crush . | . . . . . . . . . . Escape Stasis 53 | . . . . . . . . 45 8 Rewire 66 | . . . . 2 . . . 64 . Trap . | . . . . . . . . . . Miscellaneous . | . . . . . . . . . . Route ------- -11/Scrapyard -10/Materials (discovered 4 exits: *Mat x3 / [*Min]) -9/Materials (discovered 2 exits: *Mat / *Min) -9/Mines (discovered 3 exits: *Mat x2 / *Exi) -9/Exiles -8/Mines -8/Materials -7/Factory -7/Garrison (discovered 4 exits: *Fac x4) -7/Factory History --------- Turn | Location | Event 5 | -11/Scrapyard | Discovered new exit (range 15) 63 | -11/Scrapyard | Entered Materials 112 | -10/Materials | Discovered new exit (range 16) 307 | -10/Materials | Build established: Mutant 363 | -10/Materials | Discovered new exit (range 8) 639 | -10/Materials | Discovered new exit (range 15) 1388 | -10/Materials | Discovered new exit (range 8) 1488 | -10/Materials | Entered another Materials area 1488 | -9/Materials | Evolved 2 slots: Utility x1, Weapon x1 1793 | -9/Materials | Build established: Scavenger-Tank 2594 | -9/Materials | Discovered new exit (range 10) 3422 | -9/Materials | Repaired Power Shielding 3455 | -9/Materials | Repaired Particle Cannon 3489 | -9/Materials | Repaired Particle Gun 3897 | -9/Materials | Build established: Tank 5069 | -9/Materials | Discovered new exit (range 16) 5463 | -9/Materials | Entered Mines 5511 | -9/Mines | Learned 4 Materials zone layouts 5869 | -9/Mines | Found the Drone Emporium 6496 | -9/Mines | A weapon hastily lodged in a ceiling crevice suddenly fell to the ground 6762 | -9/Mines | Discovered new exit (range 4) 6801 | -9/Mines | Build established: Mutant 6862 | -9/Mines | Discovered new exit (range 15) 7443 | -9/Mines | Deemed a non-threat by the Exiles lab entrance 7443 | -9/Mines | Discovered new exit (range 5) 7476 | -9/Mines | Entered Exiles 7476 | -9/Exiles | Accompanied by 2 allies 7506 | -9/Exiles | Led the pair of lost Derelicts to a safe place 7561 | -9/Exiles | Met 8R-AWN 7619 | -9/Exiles | Met EX-HEX 7852 | -9/Exiles | Met EX-BIN 7893 | -9/Exiles | Met EX-DEC 8037 | -9/Exiles | Visited The Gauntlet 8641 | -9/Exiles | Discovered new exit (range 14) 9100 | -9/Exiles | Entered Mines 9307 | -8/Mines | Destroyed 8 combat bots 10124 | -8/Mines | Discovered new exit (range 7) 10920 | -8/Mines | Entered Materials 10920 | -8/Materials | Evolved 2 slots: Power x1, Propulsion x1 13257 | -8/Materials | Repaired Reflective Plating 13309 | -8/Materials | Repaired Carbon-fiber Leg 13349 | -8/Materials | Repaired Titanium Leg 13624 | -8/Materials | Repaired Lgt. Nuclear Core 13664 | -8/Materials | Repaired Lgt. Nuclear Core 13703 | -8/Materials | Repaired Scythe 13910 | -8/Materials | Discovered new exit (range 15) 13989 | -8/Materials | Entered Factory 13989 | -7/Factory | Evolved 2 slots: Propulsion x1, Utility x1 14245 | -7/Factory | Garrison activated, responded to threat 14383 | -7/Factory | Identified exit to Garrison 14383 | -7/Factory | Entered Garrison 14471 | -7/Garrison | Triggered checkpoint 14613 | -7/Garrison | Triggered checkpoint 14758 | -7/Garrison | Discovered new exit (range 10) 14785 | -7/Garrison | Triggered checkpoint 14873 | -7/Garrison | Discovered new exit (range 5) 14910 | -7/Garrison | Build established: Scavenger-Mutant 15169 | -7/Garrison | Lost 3 parts (2u1w) 15397 | -7/Garrison | Discovered new exit (range 12) 15465 | -7/Garrison | Triggered checkpoint 15558 | -7/Garrison | Garrison Relay disabled 15703 | -7/Garrison | Triggered checkpoint 15715 | -7/Garrison | Garrison Relay disabled 16097 | -7/Garrison | Triggered checkpoint 16286 | -7/Garrison | Phase Generator disabled 16387 | -7/Garrison | Triggered checkpoint 16389 | -7/Garrison | Garrison Relay disabled 16723 | -7/Garrison | Triggered checkpoint 16755 | -7/Garrison | Garrison Relay disabled 17083 | -7/Garrison | Lost 4 allies 17117 | -7/Garrison | Triggered checkpoint 17122 | -7/Garrison | Discovered new exit (range 11) 17127 | -7/Garrison | Lost 5 parts (1p2n2w) 17403 | -7/Garrison | Triggered checkpoint 17426 | -7/Garrison | Garrison Relay disabled 17578 | -7/Garrison | Found Quantum Capacitor 17829 | -7/Garrison | Found embedded Infiltrators 17906 | -7/Garrison | Entered Factory 17906 | -7/Factory | Accompanied by 2 allies 18132 | -7/Factory | Core integrity fell below 50% 18306 | -7/Factory | First assault squad dispatched 18686 | -7/Factory | Repaired Imp. Cooling System 18755 | -7/Factory | Repaired Quantum Rifle 18840 | -7/Factory | Build established: Mutant 19150 | -7/Factory | Fabricated Arm. Wheel (x2) 19199 | -7/Factory | Cargo convoy interrupted 19724 | -7/Factory | Core integrity fell below 20% 19727 | -7/Factory | Destroyed by G-50 Soldier with Heavy Laser Last Messages --------------- 19712_ G-47 Trooper Aluminum Leg blasted off. 19713_ Critical hit (Burn: +37). 19717_ M-28 Smith repairs G-47 Trooper. 19717_ Imp. Phase Shifter destroyed. 19718_ R-06 Scavenger collects Lgt. Ion Engine. 19719_ M-28 Smith fits Backup Propulsion III on G-47 Trooper. 19720_ Power failure, Mic. Fission Core shutdown. 19722_ G-50 Soldier Carbon-fiber Leg blasted off. 19722_ G-50 Soldier knocked back. 19724_ Overheating: Core damaged (-133). 19725_ Destroyed Com. Wheel. 19725_ I-36 Angel suffers critical hit (Blast). 19725_ Destroyed Com. Wheel. 19725_ I-36 Angel knocked back. 19726_ Power failure, Lgt. Antimatter Reactor shutdown. 19727_ Overheating: Core damaged (-70). Map ----- +----------------------------------------------------+ | ?????????????????????????????????????????????????? | | ?????????????????????????????????????????????????? | | ?????????????????????????????????????????????????? | | ?????????????????????????????????????????????????? | | ?????????????????????????????????????????????????? | | ?????????????????????????????????????????????????? | | ??????????????????????????#??????????????????????? | | ??????????????????????????# "????????????????????? | | ?????????????######???????# ????????????????????? | | ????????????? ] ??????#+#????????????????????? | | ????????????? ????## ###??????????????????? | | ????????????? ??#;#u###################### | | ????????????? ?# ! | | ???????????????? #% | | ??????????????????? + g % | | ????????????????????????# ! | | ????????????????????????# % ! | | ????????????????????????# % ################## # | | ????????????????????????#%!* ##"#?##??????????# # | | ????????????????????????#%k[% #% ? #??#########+# | | ????????????????????????#!=%%!# ?? # | | ????????????????????????#!=gu!#?? # """"" """" | | ??????????????########??=[g[=u# #???""""" """" | | ??????????????# ??#==%*[; # """ """ | | ??????????????# ?#%m* #? # | | ?????????????## ! #@i # # | | ???????????? "" "" # *[ # # | | ????????????"G "" +=! ^ + ############## | | ???????????# "" = "" #= # #?????????#= | | ?????????????## "" # # #?????????# | | ??????????????# % + #? #?????????# = | | ??????????????#############+#;#######?????????# = | | ??????????????????# [ #?????????# " | | ??????????????????# #?????????# "" | | ??????????????????#[ """" < #?????????#### | | ??????????????????# """" < #????????????? | | ??????????????????# "" "" """" #????????????? | | ??????????????????# ""R"" """" * #????????????# | | ??????????????????# """" #????????????+ | | ??????????????????###################????????????# | | ?????????????????????????????????????????????????? | | ?????????????????????????????????????????????????? | | ?????????????????????????????????????????????????? | | ?????????????????????????????????????????????????? | | ?????????????????????????????????????????????????? | | ?????????????????????????????????????????????????? | | ?????????????????????????????????????????????????? | | ?????????????????????????????????????????????????? | | ?????????????????????????????????????????????????? | | ?????????????????????????????????????????????????? | +----------------------------------------------------+ Best States ------------- Heat Dissipation 61 Energy Generation 32 Energy Capacity 480 Matter Stores 300 Matter Capacity 300 Sight Range 20 Terrain Scan Density 10 Armor Coverage 300 Resistance: KI 20 Resistance: TH 30 Resistance: EX 20 Resistance: EM 20 Resistance: I 20 Resistance: S 20 Resistance: P 20 Power Shielding 33 Weapon Shielding 66 Phase Shifting 10 Evasion (%) 55 Targeting Accuracy 8 Recoil Reduction 1 Energy Filtering 30 Offensive Hacking 10 Item Schematics ----------------- Arm. Wheel | -9/Materials | Scanalyzed Imp. Heat Sink | -9/Materials | Scanalyzed Core Shielding | -9/Materials | Scanalyzed Quantum Rifle | -7/Factory | Scanalyzed Robot Schematics ------------------ None Fabricated ------------ Arm. Wheel | x2 | -7/Factory Alien Tech Used ----------------- None Achievements -------------- None Challenges ------------ None Game ------ Seed SegregatorLaserThruster Manual? 0 Play Time 01:39:23 Cumulative 195.0 hours Start 2025.01.06 @ 10:10:04 End 2025.01.06 @ 13:12:34 Sessions 1 Manual Loads 0 Difficulty Adventurer Special Mode None Game No. 228 Rogue 0 Adventurer 228 Explorer 0 Win Type - Total 0 Types 0/0/0/0/0/0/0/0/0 Lore% 60 Gallery% 58 Achievement% 46 Wizard Run 0 Options --------- Layout 2 ASCII 0 Keyboard 0 Movement Mouse Keybinds 0 Fullscreen 2 Font 48/Smallcaps Map View 50x44 Zoom Use 0% Tactical HUD 1 Map Filters NONE Filters NONE Steam 1 RUN: 4e23785e-ff5a-4984-9c5d-c1d79b0f22dc